[Event "Late Titled Tuesday Blitz February 8 2022"]
[White "Einarsson, Halldor Gretar"]
[Black "Kostiukov, Alexandr"]
[WhiteFideId "2300150"]
[BlackFideId "14108100"]
[WhiteElo "2114"]
[BlackElo "2202"]
[Result "0-1"]
[Round "09"]
[TimeControl "180+1"]
[Date "2022.02.09"]
[WhiteClock "0:00:02"]
[BlackClock "0:00:04"]

1. d4 {[%clk 0:03:00]}  g6 {[%clk 0:02:59]} 2. c4 {[%clk 0:02:59]}  Bg7 {[%clk 0:02:59]} 3. Nc3 {[%clk 0:02:59]}  d6 {[%clk 0:02:59]} 4. e4 {[%clk 0:02:58]}  e5 {[%clk 0:02:59]} 5. Nge2 {[%clk 0:02:50]}  exd4 {[%clk 0:02:59]} 6. Nxd4 {[%clk 0:02:49]}  Nc6 {[%clk 0:02:58]} 7. Be3 {[%clk 0:02:47]}  Nge7 {[%clk 0:02:59]} 8. h4 {[%clk 0:02:41]}  h5 {[%clk 0:02:57]} 9. Qd2 {[%clk 0:02:31]}  O-O {[%clk 0:02:56]} 10. O-O-O {[%clk 0:02:30]}  f5 {[%clk 0:02:49]} 11. exf5 {[%clk 0:02:24]}  Bxd4 {[%clk 0:02:30]} 12. Bxd4 {[%clk 0:02:18]}  Nxf5 {[%clk 0:02:30]} 13. Be3 {[%clk 0:01:53]}  Nxe3 {[%clk 0:02:30]} 14. Qxe3 {[%clk 0:01:52]}  Ne5 {[%clk 0:02:27]} 15. f3 {[%clk 0:01:44]}  Be6 {[%clk 0:02:21]} 16. f4 {[%clk 0:01:27]}  Bg4 {[%clk 0:02:03]} 17. fxe5 {[%clk 0:01:18]}  Bxd1 {[%clk 0:02:02]} 18. Nxd1 {[%clk 0:01:04]}  dxe5 {[%clk 0:01:56]} 19. Bd3 {[%clk 0:00:50]}  Qd4 {[%clk 0:01:36]} 20. Qg3 {[%clk 0:00:35]}  Rf6 {[%clk 0:01:24]} 21. Re1 {[%clk 0:00:29]}  Qf4+ {[%clk 0:01:15]} 22. Qxf4 {[%clk 0:00:27]}  exf4 {[%clk 0:01:16]} 23. Nf2 {[%clk 0:00:25]}  Rd8 {[%clk 0:01:08]} 24. Kc2 {[%clk 0:00:25]}  Kf7 {[%clk 0:00:58]} 25. Ne4 {[%clk 0:00:21]}  Rc6 {[%clk 0:00:55]} 26. Ng5+ {[%clk 0:00:20]}  Kf6 {[%clk 0:00:50]} 27. Rf1 {[%clk 0:00:19]}  b6 {[%clk 0:00:33]} 28. Rxf4+ {[%clk 0:00:19]}  Kg7 {[%clk 0:00:28]} 29. Rf7+ {[%clk 0:00:18]}  Kh8 {[%clk 0:00:29]} 30. Re7 {[%clk 0:00:18]}  Rd4 {[%clk 0:00:21]} 31. b3 {[%clk 0:00:17]}  Rxh4 {[%clk 0:00:20]} 32. Rh7+ {[%clk 0:00:11]}  Kg8 {[%clk 0:00:19]} 33. Rd7 {[%clk 0:00:10]}  Rg4 {[%clk 0:00:19]} 34. Ne4 {[%clk 0:00:09]}  Rxg2+ {[%clk 0:00:19]} 35. Kc3 {[%clk 0:00:08]}  h4 {[%clk 0:00:19]} 36. Nd2 {[%clk 0:00:04]}  h3 {[%clk 0:00:15]} 37. Be4 {[%clk 0:00:04]}  Re6 {[%clk 0:00:09]} 38. Bd5 {[%clk 0:00:04]}  h2 {[%clk 0:00:06]} 39. Bxe6+ {[%clk 0:00:04]}  Kh8 {[%clk 0:00:05]} 40. Rd3 {[%clk 0:00:03]}  h1=Q {[%clk 0:00:04]} 41. Rh3+ {[%clk 0:00:03]}  Qxh3+ {[%clk 0:00:05]} 42. Bxh3 {[%clk 0:00:02]}  Rg3+ {[%clk 0:00:06]} 43. Kd4 {[%clk 0:00:01]}  Rxh3 {[%clk 0:00:07]} 44. Ne4 {[%clk 0:00:01]}  Kg7 {[%clk 0:00:07]} 45. Ng5 {[%clk 0:00:01]}  Rh4+ {[%clk 0:00:06]} 46. Ke5 {[%clk 0:00:01]}  Rh2 {[%clk 0:00:06]} 47. Kf4 {[%clk 0:00:01]}  Rxa2 {[%clk 0:00:05]} 48. Ne6+ {[%clk 0:00:01]}  Kf6 {[%clk 0:00:06]} 49. Nxc7 {[%clk 0:00:02]}  a5 {[%clk 0:00:06]} 50. Nb5 {[%clk 0:00:02]}  Rb2 {[%clk 0:00:05]} 51. Nd4 {[%clk 0:00:03]}  a4 {[%clk 0:00:04]} 52. bxa4 {[%clk 0:00:02]}  Rb4 {[%clk 0:00:04]} 0-1


[Site "https://www.chess.com"]

[Event "Late Titled Tuesday Blitz February 8 2022"]
[White "Fier, Alexandr"]
[Black "Timofeev, Artyom"]
[WhiteFideId "2107139"]
[BlackFideId "4140419"]
[WhiteElo "2569"]
[BlackElo "2583"]
[Result "1/2-1/2"]
[Round "09"]
[TimeControl "180+1"]
[Date "2022.02.08"]
[WhiteClock "0:00:08"]
[BlackClock "0:00:07"]

1. d4 {[%clk 0:02:01]}  d5 {[%clk 0:02:59]} 2. Bg5 {[%clk 0:02:00]}  Nd7 {[%clk 0:02:57]} 3. Nc3 {[%clk 0:02:00]}  Ngf6 {[%clk 0:02:57]} 4. Qd3 {[%clk 0:02:00]}  c5 {[%clk 0:02:56]} 5. Bxf6 {[%clk 0:01:57]}  Nxf6 {[%clk 0:02:50]} 6. dxc5 {[%clk 0:01:57]}  e6 {[%clk 0:02:47]} 7. e4 {[%clk 0:01:57]}  Bxc5 {[%clk 0:02:14]} 8. Qb5+ {[%clk 0:01:55]}  Nd7 {[%clk 0:02:14]} 9. exd5 {[%clk 0:01:56]}  exd5 {[%clk 0:02:14]} 10. Nxd5 {[%clk 0:01:56]}  O-O {[%clk 0:02:13]} 11. O-O-O {[%clk 0:01:56]}  a6 {[%clk 0:02:01]} 12. Qd3 {[%clk 0:01:55]}  Nb6 {[%clk 0:01:40]} 13. Nxb6 {[%clk 0:01:52]}  Qxb6 {[%clk 0:01:39]} 14. Nf3 {[%clk 0:01:41]}  Bxf2 {[%clk 0:01:35]} 15. Qb3 {[%clk 0:01:42]}  Qxb3 {[%clk 0:01:20]} 16. axb3 {[%clk 0:01:42]}  Be6 {[%clk 0:01:21]} 17. Bc4 {[%clk 0:01:41]}  Bxc4 {[%clk 0:01:18]} 18. bxc4 {[%clk 0:01:41]}  Rfd8 {[%clk 0:01:16]} 19. Rd5 {[%clk 0:01:37]}  Rxd5 {[%clk 0:01:11]} 20. cxd5 {[%clk 0:01:37]}  Rd8 {[%clk 0:01:12]} 21. Rd1 {[%clk 0:01:37]}  b5 {[%clk 0:01:12]} 22. c3 {[%clk 0:01:36]}  f6 {[%clk 0:01:10]} 23. Kc2 {[%clk 0:01:36]}  Kf7 {[%clk 0:01:10]} 24. b3 {[%clk 0:01:36]}  Ke7 {[%clk 0:01:07]} 25. c4 {[%clk 0:01:37]}  Kd6 {[%clk 0:01:07]} 26. Nd2 {[%clk 0:01:36]}  f5 {[%clk 0:01:06]} 27. Rf1 {[%clk 0:01:34]}  Bc5 {[%clk 0:00:53]} 28. Rxf5 {[%clk 0:01:35]}  Re8 {[%clk 0:00:53]} 29. Rf7 {[%clk 0:01:14]}  Re2 {[%clk 0:00:37]} 30. Kd1 {[%clk 0:01:15]}  Re3 {[%clk 0:00:36]} 31. Rxg7 {[%clk 0:01:15]}  Bb4 {[%clk 0:00:36]} 32. Nf3 {[%clk 0:01:09]}  Rxb3 {[%clk 0:00:33]} 33. cxb5 {[%clk 0:01:10]}  axb5 {[%clk 0:00:33]} 34. Rxh7 {[%clk 0:01:10]}  Rb2 {[%clk 0:00:25]} 35. Rg7 {[%clk 0:01:08]}  Kxd5 {[%clk 0:00:23]} 36. Rg4 {[%clk 0:01:07]}  Bc5 {[%clk 0:00:22]} 37. Kc1 {[%clk 0:00:57]}  Rf2 {[%clk 0:00:21]} 38. h4 {[%clk 0:00:56]}  b4 {[%clk 0:00:20]} 39. Rg5+ {[%clk 0:00:43]}  Kc4 {[%clk 0:00:19]} 40. Nd2+ {[%clk 0:00:44]}  Kd3 {[%clk 0:00:08]} 41. Rxc5 {[%clk 0:00:44]}  Rxg2 {[%clk 0:00:09]} 42. Nb3 {[%clk 0:00:40]}  Rh2 {[%clk 0:00:08]} 43. h5 {[%clk 0:00:40]}  Ke4 {[%clk 0:00:07]} 44. Rb5 {[%clk 0:00:39]}  Kf4 {[%clk 0:00:06]} 45. Nd4 {[%clk 0:00:38]}  Kg4 {[%clk 0:00:06]} 46. Rxb4 {[%clk 0:00:32]}  Kxh5 {[%clk 0:00:06]} 47. Kd1 {[%clk 0:00:33]}  Rf2 {[%clk 0:00:05]} 48. Ne2 {[%clk 0:00:33]}  Rf1+ {[%clk 0:00:05]} 49. Kd2 {[%clk 0:00:33]}  Ra1 {[%clk 0:00:05]} 50. Ke3 {[%clk 0:00:34]}  Kh6 {[%clk 0:00:05]} 51. Kf4 {[%clk 0:00:31]}  Kg6 {[%clk 0:00:05]} 52. Ke5 {[%clk 0:00:30]}  Kf7 {[%clk 0:00:05]} 53. Nf4 {[%clk 0:00:30]}  Ke8 {[%clk 0:00:05]} 54. Nd5 {[%clk 0:00:30]}  Re1+ {[%clk 0:00:05]} 55. Kd6 {[%clk 0:00:30]}  Kf7 {[%clk 0:00:06]} 56. Rf4+ {[%clk 0:00:28]}  Kg6 {[%clk 0:00:05]} 57. Rf2 {[%clk 0:00:29]}  Rd1 {[%clk 0:00:04]} 58. Rf3 {[%clk 0:00:28]}  Kg5 {[%clk 0:00:04]} 59. Ke5 {[%clk 0:00:28]}  Kg4 {[%clk 0:00:04]} 60. Rf4+ {[%clk 0:00:27]}  Kg5 {[%clk 0:00:05]} 61. Re4 {[%clk 0:00:25]}  Ra1 {[%clk 0:00:04]} 62. Re2 {[%clk 0:00:25]}  Ra5 {[%clk 0:00:04]} 63. Rg2+ {[%clk 0:00:25]}  Kh4 {[%clk 0:00:05]} 64. Ke6 {[%clk 0:00:26]}  Kh3 {[%clk 0:00:05]} 65. Rg8 {[%clk 0:00:25]}  Kh2 {[%clk 0:00:05]} 66. Ke5 {[%clk 0:00:24]}  Ra4 {[%clk 0:00:05]} 67. Nf4 {[%clk 0:00:24]}  Ra5+ {[%clk 0:00:06]} 68. Ke4 {[%clk 0:00:24]}  Ra3 {[%clk 0:00:06]} 69. Ne6 {[%clk 0:00:23]}  Ra4+ {[%clk 0:00:06]} 70. Nd4 {[%clk 0:00:24]}  Ra3 {[%clk 0:00:06]} 71. Nf3+ {[%clk 0:00:24]}  Kh3 {[%clk 0:00:06]} 72. Ne5 {[%clk 0:00:23]}  Ra4+ {[%clk 0:00:06]} 73. Kf5 {[%clk 0:00:23]}  Ra3 {[%clk 0:00:07]} 74. Ng6 {[%clk 0:00:20]}  Ra5+ {[%clk 0:00:06]} 75. Ne5 {[%clk 0:00:20]}  Ra3 {[%clk 0:00:06]} 76. Rg4 {[%clk 0:00:18]}  Ra5 {[%clk 0:00:05]} 77. Re4 {[%clk 0:00:18]}  Kg2 {[%clk 0:00:04]} 78. Kf4 {[%clk 0:00:17]}  Ra8 {[%clk 0:00:04]} 79. Re2+ {[%clk 0:00:15]}  Kf1 {[%clk 0:00:04]} 80. Rh2 {[%clk 0:00:15]}  Re8 {[%clk 0:00:04]} 81. Nd3 {[%clk 0:00:15]}  Rf8+ {[%clk 0:00:05]} 82. Ke4 {[%clk 0:00:14]}  Re8+ {[%clk 0:00:05]} 83. Kf3 {[%clk 0:00:14]}  Rf8+ {[%clk 0:00:05]} 84. Nf4 {[%clk 0:00:14]}  Ke1 {[%clk 0:00:06]} 85. Ra2 {[%clk 0:00:14]}  Kd1 {[%clk 0:00:06]} 86. Ke3 {[%clk 0:00:15]}  Kc1 {[%clk 0:00:06]} 87. Nd3+ {[%clk 0:00:14]}  Kb1 {[%clk 0:00:07]} 88. Rb2+ {[%clk 0:00:15]}  Ka1 {[%clk 0:00:07]} 89. Rb4 {[%clk 0:00:11]}  Rd8 {[%clk 0:00:08]} 90. Kd2 {[%clk 0:00:11]}  Ka2 {[%clk 0:00:08]} 91. Rb5 {[%clk 0:00:10]}  Ka3 {[%clk 0:00:08]} 92. Kc3 {[%clk 0:00:10]}  Ka4 {[%clk 0:00:08]} 93. Rb4+ {[%clk 0:00:09]}  Ka5 {[%clk 0:00:08]} 94. Nc5 {[%clk 0:00:09]}  Rh8 {[%clk 0:00:07]} 95. Rb7 {[%clk 0:00:07]}  Rh3+ {[%clk 0:00:06]} 96. Kd4 {[%clk 0:00:08]}  Rh4+ {[%clk 0:00:07]} 1/2-1/2


[Site "https://www.chess.com"]

[Event "Late Titled Tuesday Blitz February 8 2022"]
[White "Garagulya, Konstantin"]
[Black "Vusatiuk, Vladimir"]
[WhiteFideId "4128931"]
[BlackFideId "14118610"]
[WhiteElo "2329"]
[BlackElo "2157"]
[Result "0-1"]
[Round "09"]
[TimeControl "180+1"]
[Date "2022.02.09"]
[WhiteClock "0:00:16"]
[BlackClock "0:00:11"]

1. d4 {[%clk 0:02:57]}  g6 {[%clk 0:02:57]} 2. e4 {[%clk 0:02:56]}  Bg7 {[%clk 0:02:57]} 3. Nf3 {[%clk 0:02:57]}  d6 {[%clk 0:02:58]} 4. Bc4 {[%clk 0:02:57]}  a6 {[%clk 0:02:43]} 5. a4 {[%clk 0:02:54]}  Nc6 {[%clk 0:02:38]} 6. c3 {[%clk 0:02:54]}  Nf6 {[%clk 0:02:31]} 7. Nbd2 {[%clk 0:02:46]}  e5 {[%clk 0:02:19]} 8. h3 {[%clk 0:02:44]}  O-O {[%clk 0:02:01]} 9. O-O {[%clk 0:02:45]}  exd4 {[%clk 0:01:57]} 10. cxd4 {[%clk 0:02:43]}  d5 {[%clk 0:01:57]} 11. exd5 {[%clk 0:02:43]}  Nxd5 {[%clk 0:01:58]} 12. Nb3 {[%clk 0:02:39]}  Bf5 {[%clk 0:01:31]} 13. Bg5 {[%clk 0:02:22]}  Qd6 {[%clk 0:01:26]} 14. Nc5 {[%clk 0:02:04]}  Rab8 {[%clk 0:01:09]} 15. Qb3 {[%clk 0:02:00]}  Na5 {[%clk 0:01:02]} 16. Qa2 {[%clk 0:01:47]}  Nb4 {[%clk 0:00:59]} 17. Qa3 {[%clk 0:01:44]}  Nc2 {[%clk 0:00:59]} 18. Qc3 {[%clk 0:01:42]}  Nxa1 {[%clk 0:00:57]} 19. Rxa1 {[%clk 0:01:15]}  Nxc4 {[%clk 0:00:57]} 20. Qxc4 {[%clk 0:01:15]}  b5 {[%clk 0:00:49]} 21. axb5 {[%clk 0:01:13]}  axb5 {[%clk 0:00:50]} 22. Qb4 {[%clk 0:01:11]}  Be4 {[%clk 0:00:39]} 23. Ra6 {[%clk 0:01:04]}  Rb6 {[%clk 0:00:39]} 24. Qa5 {[%clk 0:00:33]}  Bxf3 {[%clk 0:00:34]} 25. gxf3 {[%clk 0:00:33]}  Bxd4 {[%clk 0:00:30]} 26. Rxb6 {[%clk 0:00:25]}  Qg3+ {[%clk 0:00:23]} 27. Kh1 {[%clk 0:00:23]}  Qxh3+ {[%clk 0:00:23]} 28. Kg1 {[%clk 0:00:23]}  Qg3+ {[%clk 0:00:24]} 29. Kh1 {[%clk 0:00:24]}  Bxf2 {[%clk 0:00:11]} 30. Qa1 {[%clk 0:00:16]}  Qh3# {[%clk 0:00:11]} 0-1


[Site "https://www.chess.com"]

[Event "Late Titled Tuesday Blitz February 8 2022"]
[White "Garcia Martin, Marta"]
[Black "Potapova, Margarita"]
[WhiteFideId "32084030"]
[BlackFideId "14126869"]
[WhiteElo "2102"]
[BlackElo "2209"]
[Result "0-1"]
[Round "09"]
[TimeControl "180+1"]
[Date "2022.02.08"]
[WhiteClock "0:00:01"]
[BlackClock "0:00:06"]

1. Nf3 {[%clk 0:03:00]}  Nf6 {[%clk 0:02:59]} 2. e3 {[%clk 0:02:57]}  b6 {[%clk 0:02:58]} 3. c4 {[%clk 0:02:50]}  Bb7 {[%clk 0:02:59]} 4. d4 {[%clk 0:02:51]}  g6 {[%clk 0:02:59]} 5. Nc3 {[%clk 0:02:50]}  Bg7 {[%clk 0:03:00]} 6. Bd3 {[%clk 0:02:50]}  O-O {[%clk 0:03:00]} 7. e4 {[%clk 0:02:50]}  d6 {[%clk 0:02:56]} 8. O-O {[%clk 0:02:49]}  e5 {[%clk 0:02:54]} 9. d5 {[%clk 0:02:48]}  a5 {[%clk 0:02:54]} 10. Be3 {[%clk 0:02:47]}  Nbd7 {[%clk 0:02:54]} 11. Nd2 {[%clk 0:02:46]}  Nh5 {[%clk 0:02:52]} 12. g3 {[%clk 0:02:42]}  Qe8 {[%clk 0:02:52]} 13. Be2 {[%clk 0:02:21]}  Nc5 {[%clk 0:02:39]} 14. Bxh5 {[%clk 0:02:12]}  gxh5 {[%clk 0:02:39]} 15. Qxh5 {[%clk 0:02:05]}  Bc8 {[%clk 0:02:39]} 16. Bh6 {[%clk 0:01:59]}  f5 {[%clk 0:02:31]} 17. Qxe8 {[%clk 0:01:42]}  Rxe8 {[%clk 0:02:32]} 18. Bxg7 {[%clk 0:01:43]}  Kxg7 {[%clk 0:02:33]} 19. f3 {[%clk 0:01:20]}  Rf8 {[%clk 0:02:29]} 20. Nb5 {[%clk 0:01:13]}  Rf7 {[%clk 0:02:27]} 21. Kg2 {[%clk 0:01:09]}  h5 {[%clk 0:02:26]} 22. h4 {[%clk 0:01:08]}  a4 {[%clk 0:02:16]} 23. b4 {[%clk 0:00:58]}  Nd3 {[%clk 0:02:16]} 24. a3 {[%clk 0:00:57]}  f4 {[%clk 0:01:54]} 25. Rg1 {[%clk 0:00:52]}  fxg3 {[%clk 0:01:52]} 26. Kxg3 {[%clk 0:00:51]}  Kh7 {[%clk 0:01:50]} 27. Kh2 {[%clk 0:00:49]}  Ba6 {[%clk 0:01:34]} 28. Rg5 {[%clk 0:00:44]}  Nf4 {[%clk 0:01:29]} 29. Nc3 {[%clk 0:00:40]}  Bc8 {[%clk 0:01:18]} 30. Rag1 {[%clk 0:00:38]}  Bd7 {[%clk 0:01:18]} 31. Ne2 {[%clk 0:00:33]}  Be8 {[%clk 0:01:03]} 32. Nxf4 {[%clk 0:00:33]}  Rxf4 {[%clk 0:01:04]} 33. Rg7+ {[%clk 0:00:28]}  Kh6 {[%clk 0:00:53]} 34. Rxc7 {[%clk 0:00:23]}  Rxh4+ {[%clk 0:00:49]} 35. Kg3 {[%clk 0:00:23]}  Rf4 {[%clk 0:00:49]} 36. Kf2 {[%clk 0:00:19]}  h4 {[%clk 0:00:37]} 37. Rgg7 {[%clk 0:00:17]}  Bg6 {[%clk 0:00:37]} 38. Rgd7 {[%clk 0:00:13]}  Raf8 {[%clk 0:00:15]} 39. Rxd6 {[%clk 0:00:12]}  Kh5 {[%clk 0:00:16]} 40. Re6 {[%clk 0:00:06]}  h3 {[%clk 0:00:11]} 41. Rxe5+ {[%clk 0:00:06]}  Kh4 {[%clk 0:00:11]} 42. Kg1 {[%clk 0:00:02]}  Bh5 {[%clk 0:00:09]} 43. Rg7 {[%clk 0:00:01]}  Bxf3 {[%clk 0:00:06]} 0-1


[Site "https://www.chess.com"]

[Event "Late Titled Tuesday Blitz February 8 2022"]
[White "Gomez Ledo, Roberto Carlos"]
[Black "Costachi, Mihnea"]
[WhiteFideId "3507076"]
[BlackFideId "1217518"]
[WhiteElo "2379"]
[BlackElo "2464"]
[Result "1-0"]
[Round "09"]
[TimeControl "180+1"]
[Date "2022.02.08"]
[WhiteClock "0:00:04"]
[BlackClock "0:00:18"]

1. d4 {[%clk 0:03:00]}  Nf6 {[%clk 0:02:59]} 2. Bf4 {[%clk 0:03:00]}  d5 {[%clk 0:02:59]} 3. e3 {[%clk 0:02:59]}  c6 {[%clk 0:02:58]} 4. Nd2 {[%clk 0:02:58]}  g6 {[%clk 0:02:57]} 5. h3 {[%clk 0:02:57]}  Bg7 {[%clk 0:02:58]} 6. Ngf3 {[%clk 0:02:57]}  O-O {[%clk 0:02:58]} 7. Be2 {[%clk 0:02:57]}  Bf5 {[%clk 0:02:59]} 8. O-O {[%clk 0:02:57]}  Ne4 {[%clk 0:02:58]} 9. Nxe4 {[%clk 0:02:35]}  Bxe4 {[%clk 0:02:59]} 10. c3 {[%clk 0:02:28]}  Bxf3 {[%clk 0:02:55]} 11. Bxf3 {[%clk 0:02:28]}  Nd7 {[%clk 0:02:56]} 12. a4 {[%clk 0:02:17]}  e5 {[%clk 0:02:55]} 13. Bh2 {[%clk 0:02:17]}  e4 {[%clk 0:02:55]} 14. Be2 {[%clk 0:02:16]}  f5 {[%clk 0:02:55]} 15. c4 {[%clk 0:02:11]}  Nf6 {[%clk 0:02:46]} 16. b4 {[%clk 0:02:10]}  g5 {[%clk 0:02:43]} 17. b5 {[%clk 0:02:01]}  Kh8 {[%clk 0:02:37]} 18. a5 {[%clk 0:02:01]}  a6 {[%clk 0:02:37]} 19. cxd5 {[%clk 0:01:54]}  cxb5 {[%clk 0:02:28]} 20. d6 {[%clk 0:01:48]}  Ne8 {[%clk 0:02:27]} 21. Qb3 {[%clk 0:01:42]}  f4 {[%clk 0:02:18]} 22. Qd5 {[%clk 0:01:25]}  Nxd6 {[%clk 0:02:14]} 23. Bg4 {[%clk 0:01:21]}  Qe7 {[%clk 0:02:05]} 24. Rfc1 {[%clk 0:01:18]}  Nc4 {[%clk 0:02:03]} 25. exf4 {[%clk 0:01:01]}  gxf4 {[%clk 0:02:02]} 26. Re1 {[%clk 0:00:59]}  e3 {[%clk 0:02:02]} 27. fxe3 {[%clk 0:00:52]}  Nxe3 {[%clk 0:02:02]} 28. Qf3 {[%clk 0:00:39]}  Bxd4 {[%clk 0:02:01]} 29. Kh1 {[%clk 0:00:39]}  Bxa1 {[%clk 0:01:58]} 30. Rxa1 {[%clk 0:00:40]}  Nxg4 {[%clk 0:01:58]} 31. Qxg4 {[%clk 0:00:40]}  Qg7 {[%clk 0:01:54]} 32. Qd1 {[%clk 0:00:39]}  Rad8 {[%clk 0:01:52]} 33. Qf1 {[%clk 0:00:39]}  Rd2 {[%clk 0:01:53]} 34. Re1 {[%clk 0:00:37]}  h6 {[%clk 0:01:24]} 35. Qf3 {[%clk 0:00:28]}  Rg8 {[%clk 0:01:20]} 36. Rg1 {[%clk 0:00:27]}  Rd6 {[%clk 0:01:06]} 37. Bxf4 {[%clk 0:00:26]}  Rf6 {[%clk 0:01:06]} 38. Qe3 {[%clk 0:00:23]}  Rf5 {[%clk 0:01:00]} 39. Bxh6 {[%clk 0:00:21]}  Qe5 {[%clk 0:00:55]} 40. Qc1 {[%clk 0:00:18]}  Kh7 {[%clk 0:00:49]} 41. Bd2 {[%clk 0:00:18]}  Rg3 {[%clk 0:00:46]} 42. Be1 {[%clk 0:00:17]}  Rg6 {[%clk 0:00:42]} 43. Bc3 {[%clk 0:00:16]}  Qe2 {[%clk 0:00:39]} 44. Qb1 {[%clk 0:00:13]}  Rf2 {[%clk 0:00:36]} 45. Qb4 {[%clk 0:00:06]}  Rf5 {[%clk 0:00:21]} 46. Qh4+ {[%clk 0:00:05]}  Rh6 {[%clk 0:00:21]} 47. Qd8 {[%clk 0:00:04]}  Qe6 {[%clk 0:00:17]} 48. Qh8+ {[%clk 0:00:03]}  Kg6 {[%clk 0:00:17]} 49. Qg7+ {[%clk 0:00:04]}  Kh5 {[%clk 0:00:18]} 50. Qg4# {[%clk 0:00:04]} 1-0


[Site "https://www.chess.com"]

[Event "Late Titled Tuesday Blitz February 8 2022"]
[White "Gurevich, Dmitry"]
[Black "Chernomordik, Pavel"]
[WhiteFideId "2000407"]
[BlackFideId "2804530"]
[WhiteElo "2506"]
[BlackElo "2249"]
[Result "1/2-1/2"]
[Round "09"]
[TimeControl "180+1"]
[Date "2022.02.09"]
[WhiteClock "0:00:07"]
[BlackClock "0:00:08"]

1. Nf3 {[%clk 0:03:00]}  g6 {[%clk 0:02:59]} 2. d4 {[%clk 0:02:57]}  Bg7 {[%clk 0:02:59]} 3. c4 {[%clk 0:02:56]}  d6 {[%clk 0:02:59]} 4. Nc3 {[%clk 0:02:56]}  Nc6 {[%clk 0:02:58]} 5. d5 {[%clk 0:02:54]}  Ne5 {[%clk 0:02:58]} 6. Nxe5 {[%clk 0:02:48]}  Bxe5 {[%clk 0:02:57]} 7. e4 {[%clk 0:02:46]}  c6 {[%clk 0:02:57]} 8. Bd3 {[%clk 0:02:43]}  Nf6 {[%clk 0:02:54]} 9. O-O {[%clk 0:02:41]}  O-O {[%clk 0:02:52]} 10. h3 {[%clk 0:02:40]}  e6 {[%clk 0:02:44]} 11. dxe6 {[%clk 0:02:29]}  Bxe6 {[%clk 0:02:42]} 12. Bh6 {[%clk 0:02:26]}  Re8 {[%clk 0:02:41]} 13. Qd2 {[%clk 0:02:19]}  d5 {[%clk 0:02:31]} 14. cxd5 {[%clk 0:02:13]}  cxd5 {[%clk 0:02:31]} 15. Bb5 {[%clk 0:02:08]}  Bd7 {[%clk 0:02:18]} 16. Bxd7 {[%clk 0:01:56]}  Qxd7 {[%clk 0:02:09]} 17. exd5 {[%clk 0:01:50]}  Rac8 {[%clk 0:02:04]} 18. Rad1 {[%clk 0:01:47]}  b5 {[%clk 0:01:48]} 19. f4 {[%clk 0:01:25]}  Bxc3 {[%clk 0:01:35]} 20. bxc3 {[%clk 0:01:24]}  Rc4 {[%clk 0:01:35]} 21. f5 {[%clk 0:01:18]}  Ne4 {[%clk 0:01:32]} 22. Qd3 {[%clk 0:01:07]}  Nxc3 {[%clk 0:01:18]} 23. Rde1 {[%clk 0:00:58]}  Ne4 {[%clk 0:01:12]} 24. fxg6 {[%clk 0:00:51]}  hxg6 {[%clk 0:01:12]} 25. Rf4 {[%clk 0:00:36]}  f5 {[%clk 0:01:09]} 26. g4 {[%clk 0:00:28]}  Nc5 {[%clk 0:00:59]} 27. Rxe8+ {[%clk 0:00:25]}  Qxe8 {[%clk 0:00:58]} 28. Qd2 {[%clk 0:00:23]}  Rxf4 {[%clk 0:00:44]} 29. Bxf4 {[%clk 0:00:21]}  fxg4 {[%clk 0:00:42]} 30. hxg4 {[%clk 0:00:20]}  Qd7 {[%clk 0:00:41]} 31. Qe2 {[%clk 0:00:16]}  Qxd5 {[%clk 0:00:29]} 32. Qe8+ {[%clk 0:00:15]}  Kh7 {[%clk 0:00:27]} 33. Qe7+ {[%clk 0:00:15]}  Kg8 {[%clk 0:00:26]} 34. Be5 {[%clk 0:00:13]}  Qd1+ {[%clk 0:00:21]} 35. Kg2 {[%clk 0:00:12]}  Qxg4+ {[%clk 0:00:20]} 36. Kf1 {[%clk 0:00:09]}  Qf3+ {[%clk 0:00:16]} 37. Kg1 {[%clk 0:00:08]}  Qg4+ {[%clk 0:00:12]} 38. Kf1 {[%clk 0:00:07]}  Qf3+ {[%clk 0:00:08]} 39. Kg1 {[%clk 0:00:07]}  Qg4+ {[%clk 0:00:08]} 40. Kf1 {[%clk 0:00:07]} 1/2-1/2


[Site "https://www.chess.com"]

[Event "Late Titled Tuesday Blitz February 8 2022"]
[White "Horvath, Dominik"]
[Black "Demchenko, Anton"]
[WhiteFideId "1642561"]
[BlackFideId "4160258"]
[WhiteElo "2336"]
[BlackElo "2539"]
[Result "0-1"]
[Round "09"]
[TimeControl "180+1"]
[Date "2022.02.08"]
[WhiteClock "0:00:03"]
[BlackClock "0:00:08"]

1. e4 {[%clk 0:03:00]}  e5 {[%clk 0:02:59]} 2. Nf3 {[%clk 0:03:00]}  Nc6 {[%clk 0:02:59]} 3. d4 {[%clk 0:02:53]}  exd4 {[%clk 0:02:59]} 4. Nxd4 {[%clk 0:02:53]}  Bc5 {[%clk 0:02:59]} 5. Nb3 {[%clk 0:02:53]}  Bb6 {[%clk 0:02:59]} 6. Nc3 {[%clk 0:02:54]}  d6 {[%clk 0:03:00]} 7. Qe2 {[%clk 0:02:53]}  a5 {[%clk 0:02:59]} 8. Be3 {[%clk 0:02:46]}  a4 {[%clk 0:02:59]} 9. Bxb6 {[%clk 0:02:41]}  axb3 {[%clk 0:02:59]} 10. Be3 {[%clk 0:02:41]}  bxa2 {[%clk 0:02:59]} 11. Rxa2 {[%clk 0:02:40]}  Rxa2 {[%clk 0:02:59]} 12. Nxa2 {[%clk 0:02:41]}  Nge7 {[%clk 0:02:55]} 13. Nc3 {[%clk 0:02:41]}  O-O {[%clk 0:02:54]} 14. Qd2 {[%clk 0:02:41]}  Be6 {[%clk 0:02:38]} 15. Be2 {[%clk 0:02:24]}  f5 {[%clk 0:02:27]} 16. O-O {[%clk 0:02:16]}  h6 {[%clk 0:02:23]} 17. Re1 {[%clk 0:01:57]}  Qd7 {[%clk 0:02:20]} 18. Bf1 {[%clk 0:01:56]}  fxe4 {[%clk 0:02:07]} 19. Nxe4 {[%clk 0:01:53]}  Nf5 {[%clk 0:02:07]} 20. Ng3 {[%clk 0:01:39]}  Nxe3 {[%clk 0:01:57]} 21. Qxe3 {[%clk 0:01:32]}  Bf7 {[%clk 0:01:56]} 22. Qd2 {[%clk 0:01:08]}  Re8 {[%clk 0:01:55]} 23. Rxe8+ {[%clk 0:01:08]}  Qxe8 {[%clk 0:01:56]} 24. h3 {[%clk 0:01:08]}  Qe5 {[%clk 0:01:51]} 25. c3 {[%clk 0:01:06]}  Na5 {[%clk 0:01:45]} 26. Qd1 {[%clk 0:00:42]}  b6 {[%clk 0:01:13]} 27. Qa4 {[%clk 0:00:33]}  Qe8 {[%clk 0:00:51]} 28. Qg4 {[%clk 0:00:30]}  Be6 {[%clk 0:00:37]} 29. Qf4 {[%clk 0:00:27]}  Nc6 {[%clk 0:00:31]} 30. Bb5 {[%clk 0:00:25]}  Bd7 {[%clk 0:00:30]} 31. Bc4+ {[%clk 0:00:22]}  Kh8 {[%clk 0:00:21]} 32. Kh2 {[%clk 0:00:18]}  Ne5 {[%clk 0:00:20]} 33. Bd5 {[%clk 0:00:16]}  c6 {[%clk 0:00:15]} 34. Be4 {[%clk 0:00:16]}  Qf7 {[%clk 0:00:15]} 35. Qe3 {[%clk 0:00:13]}  Nc4 {[%clk 0:00:14]} 36. Qd4 {[%clk 0:00:12]}  d5 {[%clk 0:00:13]} 37. Bd3 {[%clk 0:00:13]}  Nxb2 {[%clk 0:00:11]} 38. Be2 {[%clk 0:00:05]}  c5 {[%clk 0:00:11]} 39. Qe3 {[%clk 0:00:04]}  Nc4 {[%clk 0:00:10]} 40. Bxc4 {[%clk 0:00:03]}  dxc4 {[%clk 0:00:11]} 41. Ne4 {[%clk 0:00:03]}  Qe7 {[%clk 0:00:10]} 42. Qf4 {[%clk 0:00:03]}  Bc6 {[%clk 0:00:09]} 43. Nd6 {[%clk 0:00:03]}  Bd5 {[%clk 0:00:08]} 44. Nf5 {[%clk 0:00:03]}  Qf6 {[%clk 0:00:08]} 0-1


[Site "https://www.chess.com"]